bitfinex/quotes_ETHUSD_20240925
["timestamp","ask_amount","ask_price","bid_price","bid_amount"]
[1727280298814,7.0814866,2604.1,2603.7,0.8105]
[1727280298981,3.2413766,2603.9,2603.7,0.8105]
[1727280299372,3.2413766,2603.9,2603.4,0.8105]
[1727280299571,0.7988,2604.2,2603.4,0.8105]
[1727280299572,3.2413766,2603.6,2603.4,0.8105]
[1727280299775,3.2413766,2603.8,2603.4,4.65161]
[1727280300113,3.2413766,2603.8,2603.4,0.8105]
[1727280300314,3.8407,2603.7,2603.4,0.8105]
[1727280300518,7.82644354,2603.7,2603.1,3.84148]
[1727280300808,3.84047,2603.9,2603.3,3.84123]
[1727280300809,3.84058,2603.8,2603.3,3.84123]
[1727280301016,4.224627,2603.8,2603.3,3.84123]
[1727280301515,4.224627,2603.8,2603.4,0.8101]
[1727280302302,0.384047,2603.8,2603.4,4.65122]
[1727280302533,1.5875914,2604.2,2603.4,0.8101]
[1727280302679,5.1708752,2604.3,2603.4,0.8101]
[1727280302680,3.84042,2603.9,2603.4,0.8101]
[1727280303022,3.84037,2604.0,2603.5,3.84096]
[1727280303226,3.84062,2603.8,2603.4,0.8101]
[1727280303514,3.84062,2603.8,2603.1,3.84146]
[1727280303515,3.84095,2603.6,2603.2,0.7763]
[1727280305117,3.84121,2603.4,2602.9,0.8219]
[1727280305413,5.51649954,2603.6,2603.0,3.84159]
[1727280305414,3.84098,2603.5,2603.0,3.84159]
[1727280305629,3.98574354,2603.9,2603.2,3.84137]
[1727280305630,0.7626,2603.8,2603.2,3.84137]
[1727280305788,4.60321,2603.8,2603.2,7.68266]
[1727280305985,4.60321,2603.8,2603.3,3.84117]
[1727280306192,3.84036,2604.0,2603.1,0.8017]
[1727280306428,0.03396386,2603.7,2603.5,3.84095]
[1727280306586,4.61051,2604.2,2603.4,0.55]
[1727280306933,0.01705383,2603.6,2603.4,0.55]
[1727280307100,3.84027,2604.0,2603.4,4.3911]
[1727280307101,3.84046,2603.9,2603.4,4.3911]
[1727280307426,4.608513,2603.9,2603.3,0.7547]
[1727280307594,0.01706121,2603.8,2603.3,4.59585]
[1727280307779,3.85761121,2603.8,2603.3,4.59585]
[1727280308516,3.85761121,2603.8,2603.3,0.7547]
[1727280308517,3.84069,2603.7,2603.3,0.7547]
[1727280308737,3.84085,2603.6,2603.3,0.7547]
[1727280308910,3.85799633,2603.6,2603.3,0.7547]
[1727280309694,3.84109,2603.5,2603.3,0.7547]
[1727280309923,3.84126,2603.4,2603.0,3.7582]
[1727280310246,3.85895957,2603.4,2603.0,0.7582]
[1727280310695,0.01782957,2603.4,2603.0,0.7582]
[1727280310897,0.01782957,2603.4,2603.1,3.84157]
[1727280311096,3.85896957,2603.4,2603.0,0.7582]
[1727280311299,3.84134,2603.3,2603.0,0.7582]
[1727280311487,3.84149,2603.2,2602.7,3.84215]
[1727280311689,7.70130355,2603.2,2602.7,3.84215]
[1727280311932,3.85979355,2603.2,2602.7,3.84215]
[1727280312087,0.01830355,2603.2,2602.8,3.8419]
[1727280312419,3.8413,2603.3,2602.8,3.8419]
[1727280312716,0.0183625,2603.1,2603.0,5.15511]
[1727280312892,0.01812548,2603.2,2603.1,4.39157]
[1727280313094,3.84063,2603.8,2603.3,3.84123]
[1727280313297,3.84063,2603.8,2602.8,3.842]
[1727280313298,3.84231,2602.6,2601.6,2.00078963]
[1727280313511,10.81735281,2602.6,2601.6,2.00078963]
[1727280313832,17.80309635,2602.6,2601.6,1.20678963]
[1727280314123,3.84334,2601.9,2601.6,1.20678963]
[1727280314421,8.64008354,2601.9,2601.6,1.20678963]
[1727280314788,7.82908354,2601.9,2601.6,1.20678963]
[1727280316313,3.84364,2601.7,2601.6,1.20678963]
[1727280316498,5.38925835,2601.7,2601.6,1.20678963]
[1727280316890,5.38925835,2601.7,2601.1,2.40711027]
[1727280316891,3.84408,2601.4,2601.1,2.40711027]
[1727280317091,3.84408,2601.4,2600.4,3.9933867]
[1727280317092,3.84482,2600.9,2600.4,3.9933867]
[1727280317292,3.84511,2600.7,2600.4,3.9933867]
[1727280318429,4.64885,2601.8,2600.5,0.7658]
[1727280318598,3.84434,2601.3,2600.5,0.7658]
[1727280318799,3.84402,2601.5,2600.8,3.84495]
[1727280319038,3.84418,2601.4,2600.9,0.55]
[1727280319207,3.84373,2601.7,2601.0,0.7658]
[1727280319411,3.84378,2601.6,2601.1,0.55]
[1727280319611,3.84369,2601.7,2601.1,0.55]
[1727280319816,3.84385,2601.6,2601.1,0.55]
[1727280320001,3.84369,2601.7,2601.1,0.55]
[1727280320517,3.84397,2601.5,2601.1,0.55]
[1727280320829,3.84432,2601.3,2601.0,0.7658]
[1727280321030,7.68869,2601.3,2601.0,0.7658]
[1727280321234,3.84511,2600.7,2600.6,3.31729884]
[1727280321407,3.98574354,2601.3,2600.6,3.31729884]
[1727280321598,7.83005354,2601.3,2600.6,7.16243884]
[1727280321797,7.83005354,2601.3,2600.7,3.8451]
[1727280322248,3.84395,2601.5,2600.8,3.84495]
[1727280322400,3.84395,2601.5,2600.9,3.84469]
[1727280323036,3.84389,2601.6,2601.0,4.61394]
[1727280323246,3.98574354,2601.9,2601.0,4.61394]
[1727280323441,3.84351,2601.8,2601.2,3.84429]
[1727280323602,3.84365,2601.7,2601.2,3.84429]
[1727280323805,3.84351,2601.8,2601.2,7.68858]
[1727280324021,1.6089783,2602.5,2601.6,0.8268]
[1727280324022,3.84307,2602.1,2601.6,0.8268]
[1727280324240,3.98574354,2601.9,2601.6,0.8268]
[1727280324406,3.84364,2601.7,2601.6,0.8268]
[1727280324604,3.98574354,2601.9,2601.2,0.7751]
[1727280324801,3.98574354,2601.5,2601.2,0.7751]
[1727280325033,7.82969354,2601.5,2601.2,0.7751]
[1727280325544,7.68748,2601.7,2601.2,0.7751]
[1727280325706,3.84372,2601.7,2601.2,0.7751]
[1727280325914,3.84372,2601.7,2601.2,4.61947]
[1727280326114,3.84394,2601.5,2601.2,0.7751]
[1727280326316,3.84423,2601.3,2600.8,0.8228]
[1727280326551,3.84335,2601.9,2600.8,0.8228]
[1727280326552,3.98574354,2601.2,2600.8,0.8228]
[1727280326752,3.845,2600.8,2600.5,0.7581]
[1727280327163,3.845,2600.8,2600.4,0.00193]
[1727280327660,3.84521,2600.7,2600.4,0.00193]
[1727280328327,3.84541,2600.5,2600.4,0.00193]
[1727280328787,3.84505,2600.8,2600.4,0.00193]
[1727280329349,3.84467,2601.0,2600.4,3.8474]
[1727280329652,3.84482,2600.9,2600.5,0.55]
[1727280329846,3.84473,2601.0,2600.6,0.55]
[1727280331053,3.84473,2601.0,2600.4,4.39747]
[1727280331359,3.84473,2601.0,2600.4,0.55193]
[1727280331516,3.84415,2601.4,2600.8,3.84487]
[1727280331728,3.84388,2601.6,2601.1,1.3532]
[1727280332057,0.09077971,2601.5,2601.1,1.3532]
[1727280332242,0.09077971,2601.5,2601.4,0.55]
[1727280332446,0.09077971,2601.5,2601.4,4.39408]
[1727280332824,0.09077971,2601.5,2601.4,5.19848]
[1727280333385,0.09077971,2601.5,2601.4,1.3544]
[1727280333878,0.09077971,2601.5,2601.4,0.8044]
[1727280334259,0.09077971,2601.5,2601.4,1.3544]
[1727280334447,0.09077971,2601.5,2601.4,5.19848]
[1727280334847,0.09077971,2601.5,2601.4,5.27535543]
[1727280335248,0.09077971,2601.5,2601.4,5.19848]
[1727280335864,3.98574354,2601.5,2600.8,0.7539]
[1727280336069,3.84482,2600.9,2600.8,0.7539]
[1727280336252,3.84482,2600.9,2600.2,0.0373683]
[1727280336253,3.84505,2600.8,2600.5,0.7539]
[1727280336589,0.07868286,2600.7,2600.5,0.7539]
[1727280337061,3.84476,2601.0,2600.5,0.7539]
[1727280337062,3.84476,2601.0,2600.5,4.59929]
[1727280337387,3.84484,2600.9,2600.5,1.3039]
[1727280337586,3.84505,2600.8,2600.5,1.3039]
[1727280337796,3.84541,2600.5,2600.4,0.00193]
[1727280337961,7.83100354,2600.6,2600.4,0.00193]
[1727280337962,3.84526,2600.6,2600.4,0.00193]
[1727280338154,3.92355931,2600.5,2600.4,0.00193]
[1727280338556,0.84064931,2600.5,2600.2,0.0373683]
[1727280338860,7.83145354,2600.3,2600.2,0.0373683]
[1727280339391,11.68113205,2600.3,2600.2,0.0373683]
[1727280340388,11.68113205,2600.3,2599.6,0.11797419]
[1727280340389,3.84659,2599.7,2599.6,0.11797419]
[1727280340592,7.69298,2599.8,2599.6,0.11797419]
[1727280340765,3.84659,2599.7,2599.6,0.11797419]
[1727280341379,4.53486593,2600.3,2599.6,0.11797419]
[1727280341712,3.84626,2600.0,2599.6,0.14538369]
[1727280342071,0.07873969,2599.9,2599.6,3.99211369]
[1727280342311,0.07873969,2599.9,2599.6,0.14538369]
[1727280342512,0.00856094,2600.3,2599.6,0.14538369]
[1727280342513,7.69191,2600.2,2599.6,0.14538369]
[1727280342693,0.07897737,2599.8,2599.6,0.14538369]
[1727280342899,3.84632,2599.9,2599.6,0.14538369]
[1727280343073,7.66247737,2599.9,2599.6,0.14538369]
[1727280343409,0.00774506,2600.1,2599.9,3.84622]
[1727280343614,0.00774506,2600.1,2600.0,4.39615]
[1727280343782,0.7667,2600.9,2600.0,4.39615]
[1727280343783,3.84535,2600.6,2600.0,0.55]
[1727280344138,0.7667,2600.9,2600.2,3.84576]
[1727280344139,8.21156874,2600.8,2600.2,3.84576]
[1727280344272,4.36648874,2600.8,2600.1,3.8459]
[1727280344476,0.52143874,2600.8,2599.9,3.84623]
[1727280344675,3.84531,2600.6,2600.0,4.39613]
[1727280344902,4.44768742,2600.6,2599.8,3.0]
[1727280345083,8.29302742,2600.6,2599.9,3.84618]
[1727280345288,3.84542,2600.5,2599.9,3.84618]
[1727280345576,3.84522,2600.7,2600.0,3.84602]
[1727280345777,0.461192,2600.7,2600.3,3.84569]
[1727280345973,7.68952,2601.0,2600.2,3.84575]
[1727280346189,3.84476,2601.0,2600.4,3.84553]
[1727280346383,0.00964553,2600.9,2600.4,3.84553]
[1727280346594,3.84513,2600.7,2600.2,3.84576]
[1727280346802,0.00893299,2600.6,2600.2,3.84576]
[1727280347082,0.00893299,2600.6,2600.2,3.84584]
[1727280347440,3.84566,2600.4,2599.8,3.84635]
[1727280347587,3.84566,2600.4,2599.9,3.84622]
[1727280347785,0.00822029,2600.3,2599.9,3.84622]
[1727280348192,0.00822029,2600.3,2599.9,3.8463]
[1727280348408,3.84557,2600.4,2599.9,3.8463]
[1727280348583,0.00798268,2600.2,2599.9,3.8463]
[1727280348911,3.84557,2600.4,2599.9,3.8463]
[1727280349115,0.00774506,2600.1,2599.9,3.8463]
[1727280349318,3.84557,2600.4,2599.9,3.8463]
[1727280349477,3.84537,2600.6,2599.9,3.8463]
[1727280349478,0.00750741,2600.0,2599.9,3.8463]
[1727280349675,4.64784,2601.3,2600.4,3.84544]
[1727280349880,7.68919,2601.1,2600.6,3.84524]
[1727280350075,7.68919,2601.1,2600.0,1.3219]
[1727280350076,0.08102943,2601.2,2600.3,0.55]
[1727280350298,3.84524,2600.7,2600.2,3.84577]
[1727280350504,3.84502,2600.8,2600.3,3.84569]
[1727280351291,3.84485,2600.9,2600.3,0.55]
[1727280351504,3.84461,2601.1,2600.6,3.84513]
[1727280351702,0.08102943,2601.2,2600.8,3.84487]
[1727280352079,0.08102943,2601.2,2600.9,3.84481]
[1727280352312,0.08102943,2601.2,2600.8,3.84485]
[1727280352855,3.8437,2601.7,2601.3,3.8442]
[1727280353035,4.227826,2601.8,2601.3,3.8442]
[1727280353350,4.227826,2601.8,2600.2,0.8103]
[1727280353351,3.84512,2600.7,2600.2,0.8103]
[1727280353558,3.84512,2600.7,2599.7,3.84657]
[1727280353559,3.84547,2600.5,2599.7,0.8103]
[1727280353716,3.84547,2600.5,2599.9,3.84619]
[1727280354025,3.84547,2600.5,2599.7,0.8103]
[1727280354026,0.00977157,2600.4,2600.0,3.84609]
[1727280354235,0.00977157,2600.4,2599.7,0.8103]
[1727280354423,3.84551,2600.5,2599.8,3.84633]
[1727280354749,0.07906984,2600.3,2599.9,7.39627]
[1727280355251,3.92478984,2600.3,2599.8,0.55]
[1727280355460,0.7869,2600.2,2599.6,0.14538369]
[1727280355616,3.84622,2600.0,2599.6,0.14538369]
[1727280355816,3.8464,2599.9,2599.6,0.14538369]
[1727280356129,4.23104,2599.9,2599.6,0.14538369]
[1727280356327,3.8464,2599.9,2599.6,0.14538369]
[1727280356545,3.84615,2600.0,2599.6,0.14538369]
[1727280356748,0.06976514,2599.8,2599.6,0.14538369]
[1727280356934,4.63286,2600.2,2599.6,0.14538369]
[1727280356935,3.84641,2599.9,2599.6,0.14538369]
[1727280357122,0.06986576,2599.7,2599.6,0.14538369]
[1727280357337,3.84659,2599.7,2599.6,0.14538369]
[1727280357718,3.85487608,2599.8,2599.6,0.14538369]
[1727280357917,3.84659,2599.7,2599.6,0.14538369]
[1727280359261,3.85487608,2599.8,2599.6,0.14538369]
[1727280359557,3.84659,2599.7,2599.6,0.14538369]
[1727280360097,3.85487608,2599.8,2599.7,5.15099]
[1727280360098,0.00834608,2599.8,2599.7,5.15099]
[1727280360588,3.84625,2600.0,2599.6,0.14538369]
[1727280360761,0.00852687,2599.9,2599.7,3.84658]
[1727280360958,9.77713298,2600.6,2599.6,0.14538369]
[1727280361274,3.84659,2599.7,2599.6,0.14538369]
[1727280361596,3.85464159,2599.7,2599.6,0.14538369]
[1727280361771,4.62476375,2599.7,2599.6,0.14538369]
[1727280362704,0.00805159,2599.7,2599.6,0.96738369]
[1727280362868,0.00805159,2599.7,2599.6,4.81412369]
[1727280363188,0.7812,2601.0,2600.2,0.822]
[1727280363395,1.18513166,2601.2,2600.7,3.84504]
[1727280363396,0.06460859,2600.9,2600.7,3.84504]
[1727280363552,3.84447,2601.2,2600.7,3.84508]
[1727280363876,0.7812,2601.5,2600.6,3.84518]
[1727280363877,0.06520176,2601.1,2600.8,3.84488]
[1727280364387,4.62523,2601.5,2600.8,3.84486]
[1727280364605,3.84425,2601.3,2600.8,3.84486]
[1727280364803,0.52808044,2601.4,2600.3,6.84569]
[1727280364804,3.91042226,2601.2,2600.5,3.84529]
[1727280365032,3.91042226,2601.2,2600.5,3.0]
[1727280365033,4.35427253,2601.2,2600.5,3.0]
[1727280365155,0.06603226,2601.2,2600.8,3.84495]
[1727280365506,3.84415,2601.4,2600.8,3.84488]
[1727280365790,3.84411,2601.4,2600.8,3.84488]
[1727280365988,3.84386,2601.6,2601.0,3.84465]
[1727280365989,0.06737339,2601.3,2601.0,3.84465]
[1727280366193,3.84411,2601.4,2600.9,0.7774]
[1727280366398,0.06626627,2601.3,2600.6,0.7774]
[1727280366571,3.84446,2601.2,2600.6,4.62266]
[1727280366774,0.384446,2601.1,2600.6,4.62266]
[1727280366977,0.45118716,2601.1,2600.6,0.7774]
[1727280367181,0.45118716,2601.1,2600.5,0.55]
[1727280367404,0.45118716,2601.1,2600.6,3.84526]
[1727280367697,4.29585716,2601.1,2600.5,0.55]
[1727280367898,4.65881172,2601.0,2600.4,8.52333]
[1727280368201,0.88101035,2601.0,2600.5,0.55]
[1727280368386,4.72576035,2601.0,2600.5,0.55]
[1727280368592,3.91172863,2601.0,2600.5,4.39538]
[1727280368888,0.06697863,2601.0,2600.5,0.55]
[1727280369106,0.06697863,2601.0,2600.7,4.39499]
[1727280369429,0.7844,2601.0,2600.9,3.84482]
[1727280369595,0.7844,2601.0,2599.4,0.7965]
[1727280369596,0.06713298,2600.9,2599.7,3.84652]
[1727280369944,0.06713298,2600.9,2599.4,0.7965]
[1727280369945,3.84625,2600.0,2599.4,0.7965]
[1727280370083,4.4436469,2600.2,2599.3,3.84709]
[1727280370084,3.84645,2599.8,2599.3,3.84718]
[1727280370284,5.22689737,2600.2,2599.0,0.03034546]
[1727280370285,3.91571171,2599.9,2599.2,3.84725]
[1727280370627,3.84646,2599.8,2599.2,3.84725]
[1727280370784,3.91610939,2599.8,2599.3,3.84717]
[1727280371132,3.84659,2599.7,2599.0,0.03034546]
[1727280371629,0.06988709,2599.7,2599.2,3.84729]
[1727280372126,0.06988709,2599.7,2599.0,0.03034546]
[1727280372128,3.84748,2599.1,2599.0,0.03034546]
[1727280372294,7.03459629,2599.1,2599.0,0.03034546]
[1727280372493,7.10666873,2599.1,2599.0,0.03034546]
[1727280372795,6.12935829,2599.1,2599.0,0.03034546]
[1727280373125,4.69323689,2599.1,2599.0,0.03034546]
[1727280373327,7.80323689,2599.1,2599.0,0.03034546]
[1727280373481,7.80323689,2599.1,2598.7,0.0416121]
[1727280373482,8.93323689,2599.1,2598.7,0.0416121]
[1727280373682,12.1169669,2598.8,2598.7,0.0416121]
[1727280374128,9.18896602,2598.8,2598.7,0.0416121]
[1727280374310,7.74531912,2598.8,2598.7,0.0416121]
[1727280374488,9.18896602,2598.8,2598.7,0.0416121]
[1727280374844,0.07199912,2598.8,2598.7,0.0416121]
[1727280375042,0.7928,2599.2,2598.7,0.0416121]
[1727280375226,0.07135112,2598.8,2598.7,0.0416121]
[1727280375556,5.2364469,2599.6,2598.7,0.0416121]
[1727280375557,4.4436469,2599.6,2598.7,0.0416121]
[1727280375843,1.17687166,2599.7,2599.1,3.84743]
[1727280376042,1.17687166,2599.7,2599.2,3.84732]
[1727280376644,1.17687166,2599.7,2599.2,7.69455]
[1727280376844,1.17687166,2599.7,2599.3,3.84716]
[1727280377039,1.17687166,2599.7,2599.4,4.62614]
[1727280378331,1.17687166,2599.7,2599.3,3.84717]
[1727280378514,1.17687166,2599.7,2599.0,3.7711]
[1727280378711,1.17687166,2599.7,2599.0,0.7711]
[1727280378712,1.92737166,2599.7,2599.0,0.7711]
[1727280379025,0.98072639,2599.5,2599.0,3.84761]
[1727280379225,3.84704,2599.4,2598.8,3.84784]
[1727280379847,4.82761639,2599.5,2598.8,3.84785]
[1727280380058,0.78458111,2599.5,2599.0,3.84755]
[1727280380570,0.78458111,2599.5,2599.3,3.84705]
[1727280380858,0.78458111,2599.5,2599.4,3.84704]
[1727280381024,0.78458111,2599.5,2599.4,8.19344]
[1727280383352,0.78458111,2599.5,2598.7,4.485259]
[1727280383353,0.8195,2599.4,2597.9,0.0416121]
[1727280383634,0.34758118,2599.3,2598.1,0.7937]
[1727280383861,0.06824578,2599.3,2598.8,0.7937]
[1727280384061,6.22829222,2599.8,2598.8,0.7937]
[1727280384062,3.84698,2599.5,2598.8,0.7937]
[1727280384271,2.38176222,2599.8,2598.8,0.7937]
[1727280384272,0.06848351,2599.2,2598.8,0.7937]
[1727280384436,3.84688,2599.6,2598.8,0.7937]
[1727280384639,0.06851865,2599.1,2598.8,0.7937]
[1727280384842,3.84688,2599.6,2598.8,0.7937]
[1727280385182,3.84688,2599.6,2598.5,0.75]
[1727280385183,0.0694814,2599.0,2598.5,0.75]
[1727280385676,0.06978098,2598.9,2598.5,0.75]
[1727280385877,3.8472,2599.3,2598.5,0.75]
[1727280386045,0.06995696,2598.8,2598.5,0.75]
[1727280386242,3.84735,2599.2,2598.5,0.75]
[1727280386447,0.06924364,2599.1,2598.5,0.75]
[1727280386744,0.06924364,2599.1,2598.5,4.59831]
[1727280386943,0.78603124,2599.7,2598.5,4.59831]
[1727280386944,3.84668,2599.7,2598.5,0.75]
[1727280387171,0.06906631,2599.0,2598.7,3.0]
[1727280387385,3.84702,2599.5,2598.5,4.59827]
[1727280387688,0.7617,2599.8,2598.5,4.59827]
[1727280387689,3.84748,2599.1,2598.5,0.75]
[1727280388253,0.06888093,2599.0,2598.5,0.75]
[1727280388668,0.06888093,2599.0,2598.5,4.59836]
[1727280388851,3.84724,2599.3,2598.5,4.59836]
[1727280388852,3.84724,2599.3,2598.5,8.44663]
[1727280389056,0.06933207,2598.9,2598.5,4.59827]
[1727280389288,3.84759,2599.1,2598.5,0.75]
[1727280389486,0.06997182,2598.8,2598.6,3.84818]
[1727280389787,0.8079554,2599.1,2598.5,0.75]
[1727280389788,4.6554654,2599.1,2598.5,0.75]
[1727280390031,0.07020963,2598.7,2598.5,0.75]
[1727280390316,0.07044747,2598.6,2598.5,0.75]
[1727280390524,3.84764,2599.0,2598.5,0.75]
[1727280390733,0.07044747,2598.6,2598.5,0.75]
[1727280390934,3.84712,2599.4,2598.5,0.75]
[1727280391085,3.84719,2599.3,2598.8,3.84778]
[1727280391284,0.73563191,2599.7,2598.9,3.84777]
[1727280391285,3.84705,2599.4,2598.9,3.84777]
[1727280391617,4.61643,2599.4,2598.9,3.84777]
[1727280391839,0.73563191,2599.7,2599.2,3.84733]
[1727280391985,1.96507811,2600.3,2599.5,7.69364]
[1727280392188,1.96507811,2600.3,2599.6,0.823]
[1727280392189,0.19650781,2600.3,2599.6,0.823]
[1727280392415,4.4436469,2600.7,2599.3,3.84718]
[1727280392416,3.84625,2600.0,2599.3,3.84718]
[1727280392691,3.84625,2600.0,2599.1,0.823]
[1727280392692,0.8018,2600.2,2598.6,0.801]
[1727280393038,0.8018,2600.2,2598.9,3.84772]
[1727280393323,0.8018,2600.2,2598.8,3.84789]
[1727280393324,3.84636,2599.9,2598.8,3.84789]
[1727280393542,3.84645,2599.8,2599.2,3.84733]
[1727280394116,0.384636,2599.9,2599.0,3.84754]
[1727280394413,3.84666,2599.7,2599.0,3.84759]
[1727280394933,3.84638,2599.9,2598.9,7.69528]
[1727280395111,3.84638,2599.9,2599.1,3.84737]
[1727280395309,0.384638,2599.8,2599.1,3.84737]
[1727280395527,0.384638,2599.8,2599.3,3.84708]
[1727280395722,0.8018,2600.2,2599.5,3.84681]
[1727280395723,3.84608,2600.1,2599.5,3.84681]
[1727280395926,3.84608,2600.1,2599.5,3.84679]
[1727280396124,0.8018,2600.2,2599.5,3.84679]
[1727280396336,0.8018,2600.2,2599.3,0.7948]
[1727280396828,3.84667,2599.7,2599.1,3.84747]
[1727280397168,0.384667,2599.6,2599.2,3.84732]
[1727280397299,0.384667,2599.6,2599.3,3.84718]
[1727280397508,3.84639,2599.9,2599.3,3.84718]
[1727280397707,3.84634,2599.9,2599.1,7.69487]
[1727280398028,3.9138995,2599.8,2598.8,0.8082]
[1727280398332,3.84685,2599.6,2599.0,3.84761]
[1727280398547,3.84697,2599.5,2598.9,7.69533]
[1727280398705,3.84697,2599.5,2599.0,3.84751]
[1727280398706,0.06804067,2599.5,2599.0,3.84751]
[1727280399401,0.06804067,2599.5,2598.9,3.84765]
[1727280399610,0.06804067,2599.5,2599.2,3.84721]
[1727280399850,0.06804067,2599.5,2599.3,3.84709]
[1727280400010,3.84654,2599.8,2599.2,3.84721]
[1727280400210,0.06803119,2599.4,2599.2,3.84721]
[1727280400421,3.84667,2599.7,2599.3,3.84718]
[1727280400638,3.84638,2599.9,2599.3,3.84718]
[1727280400936,3.8467,2599.7,2598.8,0.8082]
[1727280401149,3.8467,2599.7,2599.2,3.84722]
[1727280401355,3.8467,2599.7,2599.2,7.69447]
[1727280401513,0.38467,2599.6,2599.3,3.8471]
[1727280401721,4.67021,2599.5,2599.0,3.84752]
[1727280402048,3.84719,2599.3,2598.8,4.65601]
[1727280402259,3.84719,2599.3,2598.6,3.84814]
[1727280402425,3.84719,2599.3,2598.8,3.84791]
[1727280402426,0.06863019,2599.2,2598.8,3.84791]
[1727280402759,0.06880613,2599.1,2598.8,3.84791]
[1727280403048,7.69447,2599.3,2598.8,3.84791]
[1727280403354,0.0685066,2599.2,2598.8,3.84791]
[1727280403951,4.698967,2599.3,2598.8,3.84791]
[1727280403952,0.06874434,2599.1,2598.8,3.84791]
[1727280404124,4.698967,2599.3,2598.8,3.84785]
[1727280404468,4.698967,2599.3,2598.8,3.84791]
[1727280404615,4.698967,2599.3,2598.7,3.84805]
[1727280404818,3.91603199,2599.2,2598.7,3.84805]
[1727280405145,0.06869199,2599.2,2598.8,3.84792]
[1727280405457,8.546287,2599.3,2598.8,3.84792]
[1727280405640,0.06886793,2599.1,2598.8,3.84792]
[1727280405838,0.06863019,2599.2,2598.8,3.84792]
[1727280406038,3.84719,2599.3,2598.8,3.84782]
[1727280406039,0.06910569,2599.0,2598.8,3.84782]
[1727280406238,0.06952888,2598.9,2598.8,3.84782]
[1727280406645,3.8472,2599.3,2598.8,3.84784]
[1727280406845,0.06928165,2598.9,2598.8,3.84784]
[1727280407049,0.467025,2599.4,2598.9,3.84769]
[1727280407353,0.06805924,2599.3,2598.9,3.84769]
[1727280407755,0.06805924,2599.3,2599.0,3.84759]
[1727280408522,0.06805924,2599.3,2599.1,3.84746]
[1727280408740,0.06805924,2599.3,2599.0,3.84756]
[1727280408940,3.84695,2599.5,2599.0,3.84756]
[1727280409278,0.06830711,2599.2,2599.0,3.84756]
[1727280409475,4.693885,2599.5,2599.0,3.84756]
[1727280409774,0.06891562,2599.1,2599.0,3.84756]
[1727280409981,0.7588,2600.0,2599.4,3.84702]
[1727280410184,4.38948412,2600.1,2599.8,3.84638]
[1727280410185,0.54337412,2600.1,2599.8,3.84638]
[1727280410399,0.06701421,2599.9,2599.8,3.84638]
[1727280410540,4.60445,2600.4,2599.8,3.84638]
[1727280410737,0.06702734,2599.9,2599.8,3.84638]
[1727280410970,4.60445,2600.4,2599.8,3.84638]
[1727280411172,0.06702734,2599.9,2599.8,3.84638]
[1727280411377,0.7588,2600.4,2599.9,3.84618]
[1727280411580,4.60444,2600.4,2599.9,3.84618]
[1727280411882,0.06578201,2600.3,2599.9,3.84618]
[1727280412246,4.37914221,2600.3,2599.8,3.84643]
[1727280412457,4.37914221,2600.3,2599.8,7.69279]
[1727280412659,0.06578201,2600.3,2600.0,3.84612]
[1727280412870,0.06578201,2600.3,2600.0,7.69213]
[1727280413088,0.06578201,2600.3,2600.1,3.84591]
[1727280413381,0.00528,2600.5,2600.1,3.84591]
[1727280413382,0.0675469,2600.2,2600.1,3.84591]
[1727280413567,0.0675469,2600.2,2600.0,3.8461]
[1727280413781,3.85075,2600.5,2599.9,3.84622]
[1727280413955,3.85075,2600.5,2600.1,3.84597]
[1727280414290,3.84556,2600.4,2599.9,3.84622]
[1727280414841,4.316245,2600.5,2600.0,3.84607]
[1727280415046,0.470775,2600.5,2599.9,3.84622]
[1727280415258,0.00528,2600.5,2600.2,3.84578]
[1727280415660,0.00528,2600.5,2600.2,3.84576]
[1727280415954,0.00528,2600.5,2600.2,7.69153]
[1727280416145,0.00528,2600.5,2600.2,3.84576]
[1727280416562,0.06892524,2600.4,2600.2,3.84576]
[1727280416768,0.06892524,2600.4,2600.2,7.69151]
[1727280417079,0.06892524,2600.4,2600.3,3.84571]
[1727280417321,0.06892524,2600.4,2600.3,4.62591]
[1727280418293,0.00528,2600.5,2600.4,7.39556]
[1727280418581,0.00528,2600.5,2600.4,12.27103674]
[1727280418781,0.037827,2601.2,2601.1,4.59662]
[1727280419441,0.037827,2601.2,2601.1,9.14501394]
[1727280419792,0.037827,2602.0,2601.8,0.80114751]
[1727280420087,0.037827,2602.0,2601.9,3.84334]
[1727280420465,0.037827,2602.0,2601.8,4.64450751]
[1727280420640,0.037827,2602.0,2601.9,3.84334]
[1727280421660,0.037827,2602.0,2601.9,6.92018906]
[1727280422047,0.037827,2602.0,2601.9,6.84334]
[1727280422904,0.037827,2602.0,2601.9,7.39334]
[1727280423180,0.037827,2602.0,2601.9,8.15474]
[1727280423552,0.037827,2602.8,2601.6,3.84375]
[1727280423553,0.037827,2602.8,2602.7,5.16386]
[1727280423972,0.037827,2602.8,2602.7,8.24067996]
[1727280424182,0.037827,2603.6,2602.7,8.24067996]
[1727280424183,0.037827,2603.6,2603.5,4.66458]
[1727280424392,0.037827,2603.6,2603.5,5.21458]
[1727280425348,0.037827,2604.4,2603.5,1.3736]
[1727280425349,3.83969,2604.4,2603.5,1.3736]
[1727280425668,0.4719021,2604.4,2603.7,3.84054]
[1727280425871,0.4719021,2604.4,2603.4,3.84111]
[1727280425872,3.84033,2604.0,2603.4,3.84111]
[1727280426190,3.84033,2604.0,2603.5,3.84098]
[1727280426191,0.05518437,2603.9,2603.5,3.84098]
[1727280426346,0.05518437,2603.9,2603.3,3.8412]
[1727280426551,0.05518437,2603.9,2603.2,0.55]
[1727280426552,0.0034314,2604.0,2603.5,7.68178]
[1727280426858,0.05535963,2603.8,2603.5,3.84088]
[1727280427051,0.05512267,2603.9,2603.5,3.84088]
[1727280427252,0.05559661,2603.7,2603.5,3.84088]
[1727280427581,0.0034314,2603.7,2603.5,3.84088]
[1727280427745,0.05589532,2603.6,2603.5,3.84088]